fUST/lending_fUST_20250522
["ID","MTS","AMOUNT","RATE_DAILY","PERIOD"]
[361932484,1747897852498,-430.0,0.00023287,2]
[361932485,1747897852516,-430.0,0.00023287,2]
[361932486,1747897852526,-430.0,0.00023287,2]
[361932487,1747897852536,-306.33,0.00023287,2]
[361932488,1747897852545,-430.0,0.00023287,2]
[361932489,1747897852555,-430.0,0.00023287,2]
[361932490,1747897852565,-542.76,0.00023287,2]
[361932491,1747897852574,-430.0,0.00023287,2]
[361932492,1747897852584,-430.0,0.00023287,2]
[361932493,1747897852593,-274.2,0.00023287,2]
[361932494,1747897852604,-430.0,0.00023287,2]
[361932495,1747897852614,-430.0,0.00023287,2]
[361932496,1747897852624,-430.0,0.00023287,2]
[361932497,1747897852633,-430.0,0.00023287,2]
[361932498,1747897852643,-430.0,0.00023287,2]
[361932499,1747897852653,-430.0,0.00023287,2]
[361932500,1747897852662,-430.0,0.00023287,2]
[361932501,1747897852672,-430.0,0.00023287,2]
[361932502,1747897852681,-430.0,0.00023287,2]
[361932503,1747897852691,-430.0,0.00023287,2]
[361932504,1747897852701,-430.0,0.00023287,2]
[361932505,1747897852710,-463.75281505,0.00023287,2]
[361932506,1747897852720,-430.0,0.00023287,2]
[361932507,1747897852729,-430.0,0.00023287,2]
[361932508,1747897852739,-430.0,0.00023287,2]
[361932509,1747897852750,-591.46,0.00023287,2]
[361932510,1747897852761,-430.0,0.00023287,2]
[361932511,1747897852770,-430.0,0.00023287,2]
[361932512,1747897852780,-430.0,0.00023287,2]
[361932513,1747897852789,-379.01,0.00023287,2]
[361932514,1747897852799,-151.0,0.00023287,7]
[361932515,1747897852809,-430.0,0.00023287,2]
[361932516,1747897852819,-430.0,0.00023287,2]
[361932517,1747897852830,-537.98,0.00023287,2]
[361932518,1747897852839,-430.0,0.00023287,2]
[361932519,1747897852849,-430.0,0.00023287,2]
[361932520,1747897852860,-430.0,0.00023287,2]
[361932521,1747897852869,-430.0,0.00023287,2]
[361932522,1747897852878,-430.0,0.00023287,2]
[361932523,1747897852887,-430.0,0.00023287,2]
[361932524,1747897852897,-430.0,0.00023287,2]
[361932525,1747897852906,-430.0,0.00023287,2]
[361932526,1747897852915,-568.07,0.00023287,2]
[361932527,1747897852925,-430.0,0.00023287,2]
[361932528,1747897852935,-737.63,0.00023287,2]
[361932529,1747897852946,-4944.51,0.00023287,2]
[361932530,1747897852955,-433.01,0.00023287,2]
[361932531,1747897852966,-430.0,0.00023287,2]
[361932532,1747897852976,-430.0,0.00023287,2]
[361932533,1747897852985,-548.61,0.00023287,2]
[361932534,1747897852995,-430.0,0.00023287,2]
[361932535,1747897853004,-1830.3,0.00023287,2]
[361932536,1747897853015,-909.11,0.00023287,2]
[361932537,1747897853024,-1269.257386,0.00023287,7]
[361932538,1747897853034,-1269.257386,0.00023287,7]
[361932539,1747897853044,-430.0,0.00023287,2]
[361932540,1747897853053,-430.0,0.00023287,2]
[361932541,1747897853063,-473.56,0.00023287,2]
[361932542,1747897853072,-3114.24,0.00023287,2]
[361932543,1747897853082,-445.54,0.00023287,2]
[361932544,1747897853092,-486.67,0.00023287,2]
[361932545,1747897853103,-555.31,0.00023287,2]
[361932546,1747897853114,-430.0,0.00023287,2]
[361932547,1747897853123,-430.0,0.00023287,2]
[361932548,1747897853134,-430.0,0.00023287,2]
[361932549,1747897853143,-221.492202,0.00023287,7]
[361932550,1747897853153,-430.0,0.00023287,2]
[361932551,1747897853163,-430.0,0.00023287,2]
[361932552,1747897853173,-430.0,0.00023287,2]
[361932553,1747897853182,-1365.91,0.00023287,2]
[361932554,1747897853192,-430.0,0.00023287,2]
[361932555,1747897853201,-430.0,0.00023287,2]
[361932556,1747897853211,-430.0,0.00023287,2]
[361932557,1747897853220,-1886.91,0.00023287,2]
[361932558,1747897853230,-430.0,0.00023287,2]
[361932559,1747897853240,-358.11774,0.00023287,7]
[361932560,1747897853250,-430.0,0.00023287,2]
[361932561,1747897853259,-751.599659,0.00023287,7]
[361932562,1747897853269,-430.0,0.00023287,2]
[361932563,1747897853279,-358.11774,0.00023287,7]
[361932564,1747897853288,-751.599659,0.00023287,7]
[361932565,1747897853298,-1225.84,0.00023287,2]
[361932566,1747897853308,-430.0,0.00023287,2]
[361932567,1747897853317,-430.0,0.00023287,2]
[361932568,1747897853326,-1136.0,0.00023287,2]
[361932569,1747897853336,-430.0,0.00023287,2]
[361932570,1747897853345,-430.0,0.00023287,2]
[361932571,1747897853357,-430.0,0.00023287,2]
[361932572,1747897853366,-430.0,0.00023287,2]
[361932573,1747897853375,-430.0,0.00023287,2]
[361932574,1747897853385,-430.0,0.00023287,2]
[361932575,1747897853394,-430.0,0.00023287,2]
[361932576,1747897853404,-430.0,0.00023287,2]
[361932577,1747897853413,-430.0,0.00023287,2]
[361932578,1747897853422,-430.0,0.00023287,2]
[361932579,1747897853432,-430.0,0.00023287,2]
[361932580,1747897853442,-430.0,0.00023287,2]
[361932581,1747897853451,-151.0,0.00023287,7]
[361932582,1747897853461,-430.0,0.00023287,2]
[361932583,1747897853471,-1990.69,0.00023287,2]
[361932584,1747897853480,-365.01,0.00023287,2]
[361932585,1747897853489,-430.0,0.00023287,2]
[361932586,1747897853499,-430.0,0.00023287,2]
[361932587,1747897853508,-430.0,0.00023287,2]
[361932588,1747897853517,-430.0,0.00023287,2]
[361932589,1747897853527,-430.0,0.00023287,2]
[361932590,1747897853537,-430.0,0.00023287,2]
[361932591,1747897853546,-347.03,0.00023287,2]
[361932592,1747897853556,-798.78,0.00023287,2]
[361932593,1747897853565,-430.0,0.00023287,2]
[361932594,1747897853575,-430.0,0.00023287,2]
[361932595,1747897853584,-482.87,0.00023287,2]
[361932596,1747897853594,-846.68,0.00023287,2]
[361932597,1747897853605,-430.0,0.00023287,2]
[361932598,1747897853615,-430.0,0.00023287,2]
[361932599,1747897853624,-430.0,0.00023287,2]
[361932600,1747897853633,-430.0,0.00023287,2]
[361932601,1747897853643,-3037.7,0.00023287,2]
[361932602,1747897853652,-430.0,0.00023287,2]
[361932603,1747897853662,-430.0,0.00023287,2]
[361932604,1747897853673,-430.0,0.00023287,2]
[361932605,1747897853683,-474.43,0.00023287,2]
[361932606,1747897853692,-430.0,0.00023287,2]
[361932607,1747897853703,-430.0,0.00023287,2]
[361932608,1747897853713,-430.0,0.00023287,2]
[361932609,1747897853723,-1340.03,0.00023287,2]
[361932610,1747897853732,-430.0,0.00023287,2]
[361932611,1747897853742,-430.0,0.00023287,2]
[361932612,1747897853752,-430.0,0.00023287,2]
[361932613,1747897853766,-430.0,0.00023287,2]
[361932614,1747897853775,-430.0,0.00023287,2]
[361932615,1747897853785,-430.0,0.00023287,2]
[361932616,1747897853794,-653.27,0.00023287,2]
[361932617,1747897853805,-430.0,0.00023287,2]
[361932618,1747897853815,-3569.58,0.00023287,2]
[361932619,1747897853825,-525.43,0.00023287,2]
[361932620,1747897853835,-443.94948,0.00023287,7]
[361932621,1747897853844,-510.0,0.00023287,2]
[361932622,1747897853855,-430.0,0.00023287,2]
[361932623,1747897853865,-865.99,0.00023287,2]
[361932624,1747897853875,-443.94948,0.00023287,7]
[361932625,1747897853884,-854.7,0.00023287,2]
[361932626,1747897853894,-831.2,0.00023287,2]
[361932627,1747897853903,-430.0,0.00023287,2]
[361932628,1747897853913,-231.863562,0.00023287,7]
[361932629,1747897853923,-430.0,0.00023287,2]
[361932630,1747897853932,-231.863562,0.00023287,7]
[361932631,1747897853942,-430.0,0.00023287,2]
[361932632,1747897853953,-430.0,0.00023287,2]
[361932633,1747897854048,-430.0,0.00023287,2]
[361932634,1747897854059,-430.0,0.00023287,2]
[361932635,1747897854069,-430.0,0.00023287,2]
[361932636,1747897854079,-430.0,0.00023287,2]
[361932637,1747897854089,-430.0,0.00023287,2]
[361932638,1747897854099,-2660.305356,0.00023314,9]
[361932639,1747897854109,-2660.305356,0.00023417,9]
[361932640,1747897854119,-151.0,0.00023452,7]
[361932641,1747897854128,-153.0,0.00023452,2]
[361932642,1747897854138,-153.0,0.00023452,2]
[361932643,1747897854148,-153.0,0.00023452,2]
[361932644,1747897854157,-363.6506951,0.00023479,2]
[361932645,1747897854167,-363.6506951,0.00023479,2]
[361932646,1747897854176,-363.6506951,0.00023479,2]
[361932647,1747897854186,-363.6506951,0.00023479,2]
[361932648,1747897854195,-363.6506951,0.00023479,2]
[361932649,1747897854205,-363.6506951,0.00023479,2]
[361932650,1747897854214,-363.6506951,0.00023479,2]
[361932651,1747897854224,-363.6506951,0.00023479,2]
[361932652,1747897854233,-363.6506951,0.00023479,2]
[361932653,1747897854242,-363.6506951,0.00023479,2]
[361932654,1747897854252,-363.6506951,0.00023479,2]
[361932655,1747897854262,-360.587323,0.00023479,2]
[361932656,1747897854271,-160.0,0.00023492,3]
[361932657,1747897854280,-151.0,0.00023502,7]
[361932658,1747897854290,-151.0,0.00023502,7]
[361932659,1747897854299,-151.0,0.00023502,7]
[361932660,1747897854308,-151.0,0.00023502,7]
[361932661,1747897854318,-151.0,0.00023502,7]
[361932662,1747897854327,-477.679954,0.00023502,7]
[361932663,1747897854336,-477.679954,0.00023502,7]
[361932664,1747897854346,-294.712434,0.00023502,2]
[361932665,1747897854357,-294.712434,0.00023502,2]
[361932666,1747897854366,-2877.696291,0.00023502,2]
[361932667,1747897854376,-2877.696291,0.00023502,2]
[361932668,1747897854385,-1396.77199,0.00023502,7]
[361932669,1747897854395,-1396.77199,0.00023502,7]
[361932670,1747897854404,-1877.724684,0.0002352,2]
[361932671,1747897854413,-157.748237,0.0002352,30]
[361932672,1747897854422,-1000.0,0.00023521,2]
[361932673,1747897854432,-1000.0,0.00023521,2]
[361932674,1747897854442,-1000.0,0.00023521,2]
[361932675,1747897854451,-1000.0,0.00023521,2]
[361932676,1747897854461,-1000.37399013,0.00023521,2]
[361932677,1747897854470,-500.0,0.00023521,2]
[361932678,1747897854480,-1000.0,0.00023521,2]
[361932679,1747897854490,-1000.0,0.00023521,2]
[361932680,1747897854500,-1000.0,0.00023521,2]
[361932681,1747897854509,-1001.27222318,0.00023521,2]
[361932682,1747897854519,-1000.0,0.00023521,2]
[361932683,1747897854529,-1037.95865538,0.00023521,2]
[361932684,1747897854539,-1000.0,0.00023521,2]
[361932685,1747897854548,-1000.0,0.00023521,2]
[361932686,1747897854558,-1000.0,0.00023521,2]
[361932687,1747897854568,-500.5047315,0.00023521,2]
[361932688,1747897854578,-1000.0,0.00023521,2]
[361932689,1747897854588,-1007.27790022,0.00023521,2]
[361932690,1747897854598,-1000.0,0.00023521,2]
[361932691,1747897854608,-1000.0,0.00023521,2]
[361932692,1747897854619,-1000.55966303,0.00023521,2]
[361932693,1747897854628,-563.04989174,0.00023521,2]
[361932694,1747897854638,-1000.0,0.00023521,2]
[361932695,1747897854649,-1000.0,0.00023521,2]
[361932696,1747897854659,-500.69058986,0.00023521,2]
[361932697,1747897854669,-1000.0,0.00023521,2]
[361932698,1747897854679,-848.92904695,0.00023521,2]
[361932699,1747897854689,-2660.305356,0.00023521,9]
[361932700,1747897854699,-638.47611383,0.00023523,2]
[361932701,1747897854709,-430.0,0.00023561,2]
[361932702,1747897854719,-296.33,0.00023561,2]
[361932703,1747897854729,-157.7,0.00023561,2]
[361932704,1747897854738,-430.0,0.00023561,2]
[361932705,1747897854748,-468.45,0.00023561,2]
[361932706,1747897854759,-430.0,0.00023561,2]
[361932707,1747897854769,-430.0,0.00023561,2]
[361932708,1747897854779,-371.57,0.00023561,2]
[361932709,1747897854788,-430.0,0.00023561,2]
[361932710,1747897854798,-430.0,0.00023561,2]
[361932711,1747897854810,-477.74000003,0.00023561,2]
[361932712,1747897854820,-430.0,0.00023561,2]
[361932713,1747897854830,-430.0,0.00023561,2]
[361932714,1747897854842,-372.4,0.00023561,2]
[361932715,1747897854852,-440.22725516,0.00023561,2]
[361932716,1747897854861,-430.0,0.00023561,2]
[361932717,1747897854871,-430.0,0.00023561,2]
[361932718,1747897854880,-430.0,0.00023561,2]
[361932719,1747897854890,-430.0,0.00023561,2]
[361932720,1747897854900,-154.21487,0.00023561,7]
[361932721,1747897854909,-430.0,0.00023561,2]
[361932722,1747897854919,-591.46,0.00023561,2]
[361932723,1747897854929,-430.0,0.00023561,2]
[361932724,1747897854938,-430.0,0.00023561,2]
[361932725,1747897854948,-430.0,0.00023561,2]
[361932726,1747897854957,-430.0,0.00023561,2]
[361932727,1747897854966,-537.98,0.00023561,2]
[361932728,1747897854976,-430.0,0.00023561,2]
[361932729,1747897854985,-205.678049,0.00023561,7]
[361932730,1747897854995,-205.678049,0.00023561,7]
[361932731,1747897855005,-430.0,0.00023561,2]
[361932732,1747897855014,-430.0,0.00023561,2]
[361932733,1747897855024,-430.0,0.00023561,2]
[361932734,1747897855033,-430.0,0.00023561,2]
[361932735,1747897855043,-265.51,0.00023561,2]
[361932736,1747897855053,-430.0,0.00023561,2]
[361932737,1747897855062,-568.07,0.00023561,2]
[361932738,1747897855071,-430.0,0.00023561,2]
[361932739,1747897855082,-737.63,0.00023561,2]
[361932740,1747897855091,-433.01,0.00023561,2]
[361932741,1747897855101,-548.61,0.00023561,2]
[361932742,1747897855111,-430.0,0.00023561,2]
[361932743,1747897855121,-430.0,0.00023561,2]
[361932744,1747897855130,-1830.3,0.00023561,2]
[361932745,1747897855140,-909.11,0.00023561,2]
[361932746,1747897855149,-430.0,0.00023561,2]
[361932747,1747897855159,-430.0,0.00023561,2]
[361932748,1747897855169,-3114.24,0.00023561,2]
[361932749,1747897855179,-445.54,0.00023561,2]
[361932750,1747897855188,-486.67,0.00023561,2]
[361932751,1747897855198,-555.31,0.00023561,2]
[361932752,1747897855209,-430.0,0.00023561,2]
[361932753,1747897855218,-430.0,0.00023561,2]
[361932754,1747897855227,-436.10316095,0.00023561,2]
[361932755,1747897855237,-151.0,0.00023561,7]
[361932756,1747897855247,-430.0,0.00023561,2]
[361932757,1747897855256,-430.0,0.00023561,2]
[361932758,1747897855265,-430.0,0.00023561,2]
[361932759,1747897855275,-1365.91,0.00023561,2]
[361932760,1747897855285,-430.0,0.00023561,2]
[361932761,1747897855294,-430.0,0.00023561,2]
[361932762,1747897855303,-430.0,0.00023561,2]
[361932763,1747897855314,-1886.91,0.00023561,2]
[361932764,1747897855323,-430.0,0.00023561,2]
[361932765,1747897855333,-430.0,0.00023561,2]
[361932766,1747897855342,-430.0,0.00023561,2]
[361932767,1747897855352,-1225.84,0.00023561,2]
[361932768,1747897855362,-430.0,0.00023561,2]
[361932769,1747897855456,-348.08,0.00023561,2]
[361932770,1747897855466,-1136.0,0.00023561,2]
[361932771,1747897855476,-430.0,0.00023561,2]
[361932772,1747897855486,-430.0,0.00023561,2]
[361932773,1747897855496,-166.6,0.00023561,2]
[361932774,1747897855506,-430.0,0.00023561,2]
[361932775,1747897855515,-430.0,0.00023561,2]
[361932776,1747897855525,-430.0,0.00023561,2]
[361932777,1747897855535,-430.0,0.00023561,2]
[361932778,1747897855544,-430.0,0.00023561,2]
[361932779,1747897855554,-430.0,0.00023561,2]
[361932780,1747897855563,-430.0,0.00023561,2]
[361932781,1747897855573,-430.0,0.00023561,2]
[361932782,1747897855583,-430.0,0.00023561,2]
[361932783,1747897855592,-430.0,0.00023561,2]
[361932784,1747897855603,-1990.69,0.00023561,2]
[361932785,1747897855612,-183.72,0.00023561,2]
[361932786,1747897855621,-297.78146172,0.00023561,2]
[361932787,1747897855631,-430.0,0.00023561,2]
[361932788,1747897855640,-430.0,0.00023561,2]
[361932789,1747897855650,-430.0,0.00023561,2]
[361932790,1747897855659,-798.78,0.00023561,2]
[361932791,1747897855669,-430.0,0.00023561,2]
[361932792,1747897855679,-430.0,0.00023561,2]
[361932793,1747897855688,-181.640102,0.00023561,7]
[361932794,1747897855698,-482.87,0.00023561,2]
[361932795,1747897855708,-846.68,0.00023561,2]
[361932796,1747897855718,-181.640102,0.00023561,7]
[361932797,1747897855727,-430.0,0.00023561,2]
[361932798,1747897855736,-430.0,0.00023561,2]
[361932799,1747897855746,-430.0,0.00023561,2]
[361932800,1747897855756,-352.943878,0.00023561,7]
[361932801,1747897855769,-2625.00804257,0.00023561,2]
[361932802,1747897857781,-430.0,0.00021917,2]
[361932803,1747897857791,-151.0,0.00021917,2]
[361932804,1747897857803,-422.78357425,0.00022574,2]
[361932805,1747897857813,-314.54559427,0.00022574,2]
[361932806,1747897857823,-412.69195743,0.00023561,2]
[361932807,1747897857834,-430.0,0.00023561,2]
[361932808,1747897857844,-352.943878,0.00023561,7]
[361932809,1747897857855,-430.0,0.00023561,2]
[361932810,1747897857865,-474.43,0.00023561,2]
[361932811,1747897857875,-430.0,0.00023561,2]
[361932812,1747897857885,-430.0,0.00023561,2]
[361932813,1747897857895,-430.0,0.00023561,2]
[361932814,1747897857905,-1340.03,0.00023561,2]
[361932815,1747897857915,-430.0,0.00023561,2]
[361932816,1747897857925,-430.0,0.00023561,2]
[361932817,1747897857935,-430.0,0.00023561,2]
[361932818,1747897857949,-430.0,0.00023561,2]
[361932819,1747897857959,-653.27,0.00023561,2]
[361932820,1747897858049,-430.0,0.00023561,2]
[361932821,1747897858066,-3400.78523928,0.00023561,2]
[361932823,1747898054641,-201.5386729,0.0002485,90]
[361932824,1747898054747,-506.0,0.00026849,60]
[361932825,1747898054804,-400.39658369,0.00027397,60]
[361932826,1747898054856,-246.21116,0.000274,120]
[361932827,1747898054902,-252.4652,0.000274,120]
[361932828,1747898054950,-32946.29854952,0.00027401,120]
[361932829,1747898055000,-200.0,0.00027521,120]
[361932830,1747898055050,-200.0,0.00027545,120]
[361932831,1747898055099,-200.0,0.00027562,120]
[361932832,1747898055144,-201.40805,0.000276,120]
[361932833,1747898055191,-329.35857,0.000276,120]
[361932834,1747898055234,-200.0,0.000276,120]
[361932835,1747898055278,-200.0,0.000276,120]
[361932836,1747898055328,-200.0,0.00027786,120]
[361932837,1747898055376,-246.21116,0.000278,120]
[361932838,1747898055421,-525.94968,0.000279,120]
[361932839,1747898055468,-200.0,0.000279,120]
[361932840,1747898055513,-200.0,0.000279,120]
[361932841,1747898055559,-249.41656,0.000279,120]
[361932842,1747898055605,-74959.49027981,0.00028,120]
[361932843,1747898055651,-227.69422257,0.00028,120]
[361932844,1747898055696,-100000.0,0.00028,120]
[361932845,1747898055744,-1000.0,0.00028,120]
[361932846,1747898055791,-1225.643579,0.00028,120]
[361932847,1747898055843,-201.40805,0.000282,120]
[361932848,1747898055895,-246.21116,0.000282,120]
[361932849,1747898055948,-200.0,0.000282,120]
[361932850,1747898056001,-200.0,0.000283,120]
[361932851,1747898056053,-358.7809,0.000283,120]
[361932852,1747898056101,-200.99607,0.000284,120]
[361932853,1747898056153,-204.40897,0.000284,120]
[361932854,1747898056201,-204.28722,0.000284,120]
[361932855,1747898056251,-203.75335,0.000284,120]
[361932856,1747898056301,-371.28474,0.000285,120]
[361932857,1747898056351,-246.21116,0.000286,120]
[361932858,1747898056402,-200.0,0.00028695,120]
[361932859,1747898056453,-525.94968,0.000288,120]
[361932860,1747898056503,-200.0,0.000288,120]
[361932861,1747898056554,-201.40805,0.000288,120]
[361932862,1747898056600,-696807.50460881,0.00028999,120]
[361932863,1747898056648,-390.50603,0.00029,120]
[361932864,1747898056696,-246.21116,0.00029,120]
[361932865,1747898056746,-10000.0,0.00029,120]
[361932866,1747898056794,-1333.0,0.00029041,120]
[361932867,1747898056847,-201.40805,0.000294,120]
[361932868,1747898056896,-246.21116,0.000294,120]
[361932869,1747898056949,-525.94968,0.000297,120]
[361932870,1747898056999,-329.1301,0.000297,120]
[361932871,1747898057048,-881.93957921,0.0003,60]
[361932872,1747898057092,-1800.0,0.0003,120]
[361932873,1747898057138,-1000.0,0.0003,120]
[361932874,1747898057180,-3061.64186109,0.0003,120]
[361932875,1747898057221,-4476.00147433,0.0003,60]
[361932876,1747898057262,-200.0,0.0003,120]
[361932877,1747898057301,-314.54559427,0.0003,120]
[361932878,1747898057342,-400.0,0.00030137,60]
[361932879,1747898057383,-558.83,0.00031,120]
[361932880,1747898057423,-2985.01913039,0.00031,120]
[361932881,1747898057462,-10000.0,0.00031,120]
[361932882,1747898057505,-241.045022,0.00031963,120]
[361932883,1747898057546,-150.94844262,0.00032,120]
[361932884,1747898057589,-558.83,0.00032,120]
[361932885,1747898057631,-1200.0,0.00032,120]
[361932886,1747898057674,-1000.0,0.00032,120]
[361932887,1747898057718,-10000.0,0.00032,120]
[361932888,1747898057764,-500.0,0.00032876,120]
[361932889,1747898057809,-500.0,0.00032876,120]
[361932890,1747898057861,-500.0,0.00032876,120]
[361932891,1747898057907,-500.0,0.00032876,120]
[361932892,1747898057953,-500.0,0.00032876,120]
[361932893,1747898057998,-500.0,0.00032876,120]
[361932894,1747898058044,-500.0,0.00032876,120]
[361932895,1747898058092,-500.0,0.00032876,120]
[361932896,1747898058139,-500.0,0.00032876,120]
[361932897,1747898058184,-500.0,0.00032876,120]
[361932898,1747898058229,-500.0,0.00032876,120]
[361932899,1747898058275,-500.0,0.00032876,120]
[361932900,1747898058319,-500.0,0.00032876,120]
[361932901,1747898058513,-500.0,0.00032876,120]
[361932902,1747898058560,-500.0,0.00032876,120]
[361932903,1747898058605,-500.0,0.00032876,120]
[361932904,1747898058650,-500.0,0.00032876,120]
[361932905,1747898058697,-260.93825531,0.00032876,120]
[361932906,1747898058747,-771.09072718,0.00032877,60]
[361932907,1747898058794,-22676.4675073,0.00032877,120]
[361932908,1747898063787,-27323.5324927,0.00032877,120]
[361932909,1747898063844,-57714.1214161,0.00032877,120]
[361932910,1747898081884,1252.25591989,0.00023,120]
[361932912,1747898131226,200.0,0.00026083,120]
[361932913,1747898191385,200.0,0.00026769,120]
[361932914,1747898250844,200.0,0.00026937,120]
[361932915,1747898254366,1836.47553672,0.00026421,30]
[361932916,1747898281892,1000.0,0.00027,120]
[361932917,1747898310897,200.0,0.00025529,120]
[361932919,1747898371435,200.0,0.0002586,120]
[361932920,1747898435926,884.95887,0.00027,120]
[361932921,1747898436280,884.95887,0.000273,120]
[361932922,1747898443124,158.326352,0.00013699,2]
[361932923,1747898480881,180.783768,0.00027397,120]
[361932924,1747898666242,257.0,0.0002739,120]
[361932925,1747898735150,-192.72854446,0.00018548,3]
[361932926,1747898735173,-522.79237432,0.0001999,2]
[361932927,1747898735193,-210.68680182,0.00020473,2]
[361932928,1747898807153,-900.0,0.00018362,2]
[361932930,1747898826852,1211.0,0.00026452,32]
[361932931,1747898828145,-267.52218632,0.00018362,2]
[361932932,1747898828173,-112.24502692,0.00020473,2]
[361932933,1747898828196,-218.77684,0.00020931,2]
[361932934,1747898828218,-300.0,0.00021104,2]
[361932936,1747898828240,-300.0,0.00021105,2]
[361932937,1747898828261,-300.0,0.00021105,2]
[361932938,1747898828283,-300.0,0.00021105,2]
[361932939,1747898828305,-1200.0,0.00021105,2]
[361932940,1747898828326,-300.0,0.00021105,2]
[361932941,1747898828349,-7020.91734429,0.00021106,2]
[361932942,1747898851109,-881.63663326,0.00021106,2]
[361932943,1747898864923,1317.55154796,0.00026452,34]
[361932945,1747898919592,188.0,0.00027397,120]
[361932946,1747898944612,-160.448,0.0002,7]
[361932948,1747898964898,169.0,0.00018548,3]
[361933004,1747899031899,-193.75909724,0.00020473,2]
[361933007,1747899031911,-250.0,0.00020938,2]
[361933009,1747899031923,-4720.59220525,0.00021106,2]
[361933013,1747899031934,-194.4374271,0.00021246,2]
[361933016,1747899031945,-300.0,0.00021915,2]
[361933018,1747899031956,-300.0,0.00021915,2]
[361933020,1747899031967,-500.0,0.00021916,2]
[361933021,1747899031977,-500.0,0.00021916,2]
[361933023,1747899031986,-182.3080446,0.00021916,2]
[361933025,1747899031996,-575.91212231,0.00021916,2]
[361933026,1747899032005,-430.0,0.00021917,2]
[361933028,1747899032015,-430.0,0.00021917,2]
[361933030,1747899032025,-430.0,0.00021917,2]
[361933032,1747899032034,-452.87921709,0.00021917,2]
[361933033,1747899032044,-430.0,0.00021917,2]
[361933035,1747899032053,-430.0,0.00021917,2]
[361933037,1747899032062,-430.0,0.00021917,2]
[361933038,1747899032072,-402.52835374,0.00021917,2]
[361933040,1747899032081,-430.0,0.00021917,2]
[361933041,1747899032091,-430.0,0.00021917,2]
[361933043,1747899032100,-430.0,0.00021917,2]
[361933044,1747899032110,-430.0,0.00021917,2]
[361933045,1747899032120,-430.0,0.00021917,2]
[361933046,1747899032129,-430.0,0.00021917,2]
[361933047,1747899032139,-430.0,0.00021917,2]
[361933048,1747899032151,-430.0,0.00021917,2]
[361933049,1747899032163,-370.0,0.00021917,2]
[361933050,1747899032173,-430.0,0.00021917,2]
[361933051,1747899032182,-270.79308138,0.00021917,2]
[361933052,1747899032192,-430.0,0.00021917,2]
[361933053,1747899032202,-430.0,0.00021917,2]
[361933054,1747899032212,-251.62774334,0.00021917,2]
[361933055,1747899032222,-470.0,0.00021917,2]
[361933056,1747899032232,-370.0,0.00021917,2]
[361933057,1747899032242,-430.0,0.00021917,2]
[361933058,1747899032252,-430.0,0.00021917,2]
[361933059,1747899032261,-430.0,0.00021917,2]
[361933060,1747899032271,-430.0,0.00021917,2]
[361933061,1747899032280,-370.0,0.00021917,2]
[361933062,1747899032290,-420.0,0.00021917,2]
[361933063,1747899032300,-430.0,0.00021917,2]
[361933064,1747899032309,-377.39182041,0.00021917,2]